fUSD/lending_fUSD_20250916
["ID","MTS","AMOUNT","RATE_DAILY","PERIOD"]
[385824106,1758057062567,-400.0,0.00030958,6]
[385824107,1758057062577,-500.0,0.00030966,7]
[385824108,1758057062586,-1300.0,0.00030982,7]
[385824109,1758057062595,-1100.0,0.0003099,7]
[385824110,1758057062604,-1100.0,0.00030994,7]
[385824111,1758057062614,-1100.0,0.00031022,7]
[385824112,1758057062624,-1100.0,0.00031032,7]
[385824113,1758057062633,-600.0,0.00031049,7]
[385824114,1758057062642,-168.49,0.00031064,2]
[385824115,1758057062653,-411.43,0.0003108,2]
[385824116,1758057062662,-11290.01160898,0.00031094,2]
[385824117,1758057062671,-7205.17345237,0.00031132,2]
[385824118,1758057062680,-500.0,0.00031134,7]
[385824119,1758057062690,-1300.0,0.00031148,7]
[385824120,1758057062699,-500.0,0.00031172,7]
[385824121,1758057062709,-151.0,0.00031177,4]
[385824122,1758057062718,-500.0,0.00031207,7]
[385824123,1758057062727,-839.09243417,0.00031224,2]
[385824124,1758057062737,-160.4017707,0.00031227,6]
[385824125,1758057062746,-300.0,0.00031231,10]
[385824126,1758057062755,-666.0,0.00031231,10]
[385824127,1758057062764,-323.15384983,0.00031232,6]
[385824128,1758057062773,-472.24,0.00031232,6]
[385824129,1758057062783,-400.0,0.00031232,6]
[385824130,1758057062792,-463.75,0.00031232,6]
[385824131,1758057062801,-400.0,0.00031232,6]
[385824132,1758057062811,-400.0,0.00031232,6]
[385824133,1758057062820,-303.11483868,0.00031232,6]
[385824134,1758057062830,-400.0,0.00031232,6]
[385824135,1758057062839,-400.0,0.00031232,6]
[385824136,1758057062848,-400.0,0.00031232,6]
[385824137,1758057062857,-400.0,0.00031232,6]
[385824138,1758057062867,-400.0,0.00031232,6]
[385824139,1758057062876,-400.0,0.00031232,6]
[385824140,1758057062885,-400.0,0.00031232,6]
[385824141,1758057062898,-400.0,0.00031232,6]
[385824142,1758057062908,-400.0,0.00031232,6]
[385824143,1758057062918,-400.0,0.00031232,6]
[385824144,1758057062928,-400.0,0.00031232,6]
[385824145,1758057062938,-400.0,0.00031232,6]
[385824146,1758057062947,-400.0,0.00031232,6]
[385824147,1758057062957,-400.0,0.00031232,6]
[385824148,1758057062967,-400.0,0.00031232,6]
[385824149,1758057062977,-400.0,0.00031232,6]
[385824150,1758057062987,-400.0,0.00031232,6]
[385824151,1758057062996,-400.0,0.00031232,6]
[385824152,1758057063005,-400.0,0.00031232,6]
[385824153,1758057063014,-400.0,0.00031232,6]
[385824154,1758057063023,-400.0,0.00031232,6]
[385824155,1758057063033,-595.04,0.00031232,6]
[385824156,1758057063043,-400.0,0.00031232,6]
[385824157,1758057063053,-400.0,0.00031232,6]
[385824158,1758057063063,-817.46,0.00031232,6]
[385824159,1758057063073,-400.0,0.00031232,6]
[385824160,1758057063083,-400.0,0.00031232,6]
[385824161,1758057063092,-400.0,0.00031232,6]
[385824162,1758057063102,-426.72,0.00031232,6]
[385824163,1758057063111,-400.0,0.00031232,6]
[385824164,1758057063121,-400.0,0.00031232,6]
[385824165,1758057063130,-400.0,0.00031232,6]
[385824166,1758057063140,-400.0,0.00031232,6]
[385824167,1758057063150,-400.0,0.00031232,6]
[385824168,1758057063159,-400.0,0.00031232,6]
[385824169,1758057063169,-400.0,0.00031232,6]
[385824170,1758057063178,-400.0,0.00031232,6]
[385824171,1758057063187,-400.0,0.00031232,6]
[385824172,1758057063197,-400.0,0.00031232,6]
[385824173,1758057063207,-400.0,0.00031232,6]
[385824174,1758057063215,-400.0,0.00031232,6]
[385824175,1758057063225,-400.0,0.00031232,6]
[385824176,1758057063234,-400.0,0.00031232,6]
[385824177,1758057063244,-466.82,0.00031232,6]
[385824178,1758057063253,-400.0,0.00031232,6]
[385824179,1758057063263,-436.46,0.00031232,6]
[385824180,1758057063272,-400.0,0.00031232,6]
[385824181,1758057063281,-400.0,0.00031232,6]
[385824182,1758057063291,-400.0,0.00031232,6]
[385824183,1758057063300,-400.0,0.00031232,6]
[385824184,1758057063310,-264.16151977,0.00031232,6]
[385824185,1758057063319,-400.0,0.00031232,6]
[385824186,1758057063329,-400.0,0.00031232,6]
[385824187,1758057063338,-400.0,0.00031232,6]
[385824188,1758057063347,-400.0,0.00031232,6]
[385824189,1758057063356,-400.0,0.00031232,6]
[385824190,1758057063367,-400.0,0.00031232,6]
[385824191,1758057063376,-375.70991675,0.00031232,6]
[385824192,1758057063385,-400.0,0.00031232,6]
[385824193,1758057063394,-400.0,0.00031232,6]
[385824194,1758057063404,-400.0,0.00031232,6]
[385824195,1758057063414,-444.47,0.00031232,6]
[385824196,1758057063423,-400.0,0.00031232,6]
[385824197,1758057063432,-400.0,0.00031232,6]
[385824198,1758057063441,-400.0,0.00031232,6]
[385824199,1758057063451,-400.0,0.00031232,6]
[385824200,1758057063460,-400.0,0.00031232,6]
[385824201,1758057063469,-400.0,0.00031232,6]
[385824202,1758057063478,-400.0,0.00031232,6]
[385824203,1758057063487,-400.0,0.00031232,6]
[385824204,1758057063497,-400.0,0.00031232,6]
[385824205,1758057063506,-400.0,0.00031232,6]
[385824206,1758057063515,-400.0,0.00031232,6]
[385824207,1758057063524,-400.0,0.00031232,6]
[385824208,1758057063533,-400.0,0.00031232,6]
[385824209,1758057063543,-400.0,0.00031232,6]
[385824210,1758057063552,-400.0,0.00031232,6]
[385824211,1758057063561,-292.89637168,0.00031232,6]
[385824212,1758057063571,-400.0,0.00031232,6]
[385824213,1758057063580,-538.45,0.00031232,6]
[385824214,1758057063589,-400.0,0.00031232,6]
[385824215,1758057063599,-400.0,0.00031232,6]
[385824216,1758057063608,-400.0,0.00031232,6]
[385824217,1758057063617,-400.0,0.00031232,6]
[385824218,1758057063626,-897.93,0.00031232,6]
[385824219,1758057063636,-400.39,0.00031232,6]
[385824220,1758057063645,-400.0,0.00031232,6]
[385824221,1758057063654,-477.46,0.00031232,6]
[385824222,1758057063663,-400.0,0.00031232,6]
[385824223,1758057063672,-400.0,0.00031232,6]
[385824224,1758057063681,-400.0,0.00031232,6]
[385824225,1758057063691,-400.0,0.00031232,6]
[385824226,1758057063700,-400.0,0.00031232,6]
[385824227,1758057063709,-400.0,0.00031232,6]
[385824228,1758057063718,-400.0,0.00031232,6]
[385824229,1758057063728,-400.0,0.00031232,6]
[385824230,1758057063738,-400.0,0.00031232,6]
[385824231,1758057063748,-400.0,0.00031232,6]
[385824232,1758057063758,-400.0,0.00031232,6]
[385824233,1758057063767,-400.0,0.00031232,6]
[385824234,1758057063778,-400.0,0.00031232,6]
[385824235,1758057063787,-420.75,0.00031232,6]
[385824236,1758057063797,-400.0,0.00031232,6]
[385824237,1758057063806,-400.0,0.00031232,6]
[385824238,1758057063816,-400.0,0.00031232,6]
[385824239,1758057063826,-400.0,0.00031232,6]
[385824240,1758057063836,-2152.72,0.00031232,6]
[385824241,1758057063846,-446.8,0.00031232,6]
[385824242,1758057063855,-400.0,0.00031232,6]
[385824243,1758057063865,-400.0,0.00031232,6]
[385824244,1758057063874,-400.0,0.00031232,6]
[385824245,1758057063884,-400.0,0.00031232,6]
[385824246,1758057063895,-400.0,0.00031232,6]
[385824247,1758057063906,-320.74844621,0.00031232,6]
[385824248,1758057063916,-400.0,0.00031232,6]
[385824249,1758057063926,-400.0,0.00031232,6]
[385824250,1758057063936,-400.0,0.00031232,6]
[385824251,1758057063946,-400.0,0.00031232,6]
[385824252,1758057063955,-400.0,0.00031232,6]
[385824253,1758057063965,-400.0,0.00031232,6]
[385824254,1758057063975,-400.0,0.00031232,6]
[385824255,1758057063986,-400.0,0.00031232,6]
[385824256,1758057063995,-400.0,0.00031232,6]
[385824257,1758057064005,-400.0,0.00031232,6]
[385824258,1758057064015,-400.0,0.00031232,6]
[385824259,1758057064025,-400.0,0.00031232,6]
[385824260,1758057064035,-400.0,0.00031232,6]
[385824261,1758057064045,-400.0,0.00031232,6]
[385824262,1758057064055,-400.0,0.00031232,6]
[385824263,1758057064065,-400.0,0.00031232,6]
[385824264,1758057064075,-400.0,0.00031232,6]
[385824265,1758057064085,-400.0,0.00031232,6]
[385824266,1758057064095,-400.0,0.00031232,6]
[385824267,1758057064105,-414.26,0.00031232,6]
[385824268,1758057064114,-400.0,0.00031232,6]
[385824269,1758057064124,-400.0,0.00031232,6]
[385824270,1758057064134,-633.69,0.00031232,6]
[385824271,1758057064143,-400.0,0.00031232,6]
[385824272,1758057064153,-438.52002379,0.00031232,6]
[385824273,1758057064162,-400.0,0.00031232,6]
[385824274,1758057064172,-400.0,0.00031232,6]
[385824275,1758057064181,-400.0,0.00031232,6]
[385824276,1758057064190,-400.0,0.00031232,6]
[385824277,1758057064200,-400.0,0.00031232,6]
[385824278,1758057064210,-400.0,0.00031232,6]
[385824279,1758057064220,-400.0,0.00031232,6]
[385824280,1758057064229,-400.0,0.00031232,6]
[385824281,1758057064239,-400.0,0.00031232,6]
[385824282,1758057064248,-400.0,0.00031232,6]
[385824283,1758057064258,-400.0,0.00031232,6]
[385824284,1758057064268,-488.35,0.00031232,6]
[385824285,1758057064277,-400.0,0.00031232,6]
[385824286,1758057064286,-400.0,0.00031232,6]
[385824287,1758057064296,-400.0,0.00031232,6]
[385824288,1758057064305,-400.0,0.00031232,6]
[385824289,1758057064315,-400.0,0.00031232,6]
[385824290,1758057064325,-400.0,0.00031232,6]
[385824291,1758057064335,-400.0,0.00031232,6]
[385824292,1758057064344,-400.0,0.00031232,6]
[385824293,1758057064354,-400.0,0.00031232,6]
[385824294,1758057064364,-636.75,0.00031232,6]
[385824295,1758057064373,-400.0,0.00031232,6]
[385824296,1758057064382,-221.32255429,0.00031232,6]
[385824297,1758057064392,-400.0,0.00031232,6]
[385824298,1758057064401,-400.0,0.00031232,6]
[385824299,1758057064411,-400.0,0.00031232,6]
[385824300,1758057064420,-400.0,0.00031232,6]
[385824301,1758057064429,-400.0,0.00031232,6]
[385824302,1758057064439,-400.0,0.00031232,6]
[385824303,1758057064448,-436.10714912,0.00031232,6]
[385824304,1758057064457,-429.49096664,0.00031232,6]
[385824305,1758057064467,-400.0,0.00031232,6]
[385824306,1758057064476,-605.63,0.00031232,6]
[385824307,1758057064485,-400.0,0.00031232,6]
[385824308,1758057064495,-400.0,0.00031232,6]
[385824309,1758057064504,-535.77,0.00031232,6]
[385824310,1758057064513,-400.0,0.00031232,6]
[385824311,1758057064523,-400.0,0.00031232,6]
[385824312,1758057064532,-400.0,0.00031232,6]
[385824313,1758057064541,-400.0,0.00031232,6]
[385824314,1758057064550,-400.0,0.00031232,6]
[385824315,1758057064560,-609.74,0.00031232,6]
[385824316,1758057064569,-400.0,0.00031232,6]
[385824317,1758057064578,-400.0,0.00031232,6]
[385824318,1758057064587,-213.49,0.00031232,6]
[385824319,1758057064597,-400.0,0.00031232,6]
[385824320,1758057064606,-400.0,0.00031232,6]
[385824321,1758057064615,-470.05,0.00031232,6]
[385824322,1758057064624,-400.0,0.00031232,6]
[385824323,1758057064633,-713.21,0.00031232,6]
[385824324,1758057064642,-400.0,0.00031232,6]
[385824325,1758057064652,-545.98,0.00031232,6]
[385824326,1758057064661,-400.0,0.00031232,6]
[385824327,1758057064670,-400.0,0.00031232,6]
[385824328,1758057064680,-435.33,0.00031232,6]
[385824329,1758057064689,-1275.84,0.00031232,6]
[385824330,1758057064699,-400.0,0.00031232,6]
[385824331,1758057064708,-305.02972588,0.00031232,6]
[385824332,1758057064718,-400.0,0.00031232,6]
[385824333,1758057064727,-405.87269422,0.00031232,6]
[385824334,1758057064736,-400.0,0.00031232,6]
[385824335,1758057064746,-400.0,0.00031232,6]
[385824336,1758057064755,-400.0,0.00031232,6]
[385824337,1758057064765,-400.0,0.00031232,6]
[385824338,1758057064774,-1307.51,0.00031232,6]
[385824339,1758057064783,-400.0,0.00031232,6]
[385824340,1758057064792,-400.0,0.00031232,6]
[385824341,1758057064801,-400.0,0.00031232,6]
[385824342,1758057064811,-585.24,0.00031232,6]
[385824343,1758057064819,-400.0,0.00031232,6]
[385824344,1758057064829,-400.0,0.00031232,6]
[385824345,1758057064839,-400.0,0.00031232,6]
[385824346,1758057064848,-400.0,0.00031232,6]
[385824347,1758057064857,-170.20876684,0.00031232,6]
[385824348,1758057064866,-2094.1,0.00031232,6]
[385824349,1758057064875,-400.0,0.00031232,6]
[385824350,1758057064885,-400.0,0.00031232,6]
[385824351,1758057064898,-432.42,0.00031232,6]
[385824352,1758057064907,-395.58914157,0.00031232,6]
[385824353,1758057064916,-426.07,0.00031232,6]
[385824354,1758057064926,-807.22,0.00031232,6]
[385824355,1758057064935,-400.0,0.00031232,6]
[385824356,1758057064945,-513.28289393,0.00031232,6]
[385824357,1758057064954,-450.81,0.00031232,6]
[385824358,1758057064963,-400.0,0.00031232,6]
[385824359,1758057064973,-1320.54,0.00031232,6]
[385824360,1758057064983,-400.0,0.00031232,6]
[385824361,1758057064993,-400.0,0.00031232,6]
[385824362,1758057065002,-400.0,0.00031232,6]
[385824363,1758057065012,-632.25,0.00031232,6]
[385824364,1758057065022,-400.0,0.00031232,6]
[385824365,1758057065031,-2034.04,0.00031232,6]
[385824366,1758057065041,-400.0,0.00031232,6]
[385824367,1758057065050,-400.0,0.00031232,6]
[385824368,1758057065060,-691.17,0.00031232,6]
[385824369,1758057065069,-318.97461343,0.00031232,6]
[385824370,1758057065079,-400.0,0.00031232,6]
[385824371,1758057065088,-712.91,0.00031232,6]
[385824372,1758057065098,-400.0,0.00031232,6]
[385824373,1758057065106,-400.0,0.00031232,6]
[385824374,1758057065115,-400.0,0.00031232,6]
[385824375,1758057065125,-400.0,0.00031232,6]
[385824376,1758057065134,-531.95,0.00031232,6]
[385824377,1758057065143,-400.0,0.00031232,6]
[385824378,1758057065153,-400.0,0.00031232,6]
[385824379,1758057065162,-400.0,0.00031232,6]
[385824380,1758057065171,-400.0,0.00031232,6]
[385824381,1758057065181,-400.0,0.00031232,6]
[385824382,1758057065190,-400.0,0.00031232,6]
[385824383,1758057065199,-682.52,0.00031232,6]
[385824384,1758057065208,-400.0,0.00031232,6]
[385824385,1758057065218,-400.0,0.00031232,6]
[385824386,1758057065228,-668.63,0.00031232,6]
[385824387,1758057065237,-2182.91,0.00031232,6]
[385824388,1758057065246,-400.0,0.00031232,6]
[385824389,1758057065255,-400.0,0.00031232,6]
[385824390,1758057065265,-577.47,0.00031232,6]
[385824391,1758057065274,-400.0,0.00031232,6]
[385824392,1758057065283,-400.0,0.00031232,6]
[385824393,1758057065292,-400.0,0.00031232,6]
[385824394,1758057065302,-400.0,0.00031232,6]
[385824395,1758057065311,-400.0,0.00031232,6]
[385824396,1758057065320,-613.19,0.00031232,6]
[385824397,1758057065329,-409.76,0.00031232,6]
[385824398,1758057065338,-1251.89,0.00031232,6]
[385824399,1758057065348,-400.0,0.00031232,6]
[385824400,1758057065357,-400.0,0.00031232,6]
[385824401,1758057065366,-400.0,0.00031232,6]
[385824402,1758057065375,-1025.88,0.00031232,6]
[385824403,1758057065385,-400.0,0.00031232,6]
[385824404,1758057065394,-400.0,0.00031232,6]
[385824405,1758057065405,-924.97,0.00031232,6]
[385824406,1758057065415,-593.74,0.00031232,6]
[385824407,1758057065424,-605.66,0.00031232,6]
[385824408,1758057065434,-516.31,0.00031232,6]
[385824409,1758057065443,-400.0,0.00031232,6]
[385824410,1758057065452,-400.0,0.00031232,6]
[385824411,1758057065461,-400.0,0.00031232,6]
[385824412,1758057065471,-462.56,0.00031232,6]
[385824413,1758057065480,-400.0,0.00031232,6]
[385824414,1758057065489,-400.0,0.00031232,6]
[385824415,1758057065499,-400.0,0.00031232,6]
[385824416,1758057065508,-1014.87,0.00031232,6]
[385824417,1758057065517,-400.0,0.00031232,6]
[385824418,1758057065527,-400.0,0.00031232,6]
[385824419,1758057065537,-524.6,0.00031232,6]
[385824420,1758057065546,-400.0,0.00031232,6]
[385824421,1758057065555,-493.11,0.00031232,6]
[385824422,1758057065564,-400.0,0.00031232,6]
[385824423,1758057065574,-412.98,0.00031232,6]
[385824424,1758057065583,-400.0,0.00031232,6]
[385824425,1758057065592,-588.1,0.00031232,6]
[385824426,1758057065602,-400.0,0.00031232,6]
[385824427,1758057065611,-400.0,0.00031232,6]
[385824428,1758057065620,-400.0,0.00031232,6]
[385824429,1758057065629,-529.64,0.00031232,6]
[385824430,1758057065638,-574.6,0.00031232,6]
[385824431,1758057065647,-436.67,0.00031232,6]
[385824432,1758057065657,-400.0,0.00031232,6]
[385824433,1758057065667,-400.0,0.00031232,6]
[385824434,1758057065676,-400.0,0.00031232,6]
[385824435,1758057065686,-983.68,0.00031232,6]
[385824436,1758057065696,-400.0,0.00031232,6]
[385824437,1758057065705,-410.54,0.00031232,6]
[385824438,1758057065715,-875.58,0.00031232,6]
[385824439,1758057065724,-400.0,0.00031232,6]
[385824440,1758057065733,-400.0,0.00031232,6]
[385824441,1758057065742,-457.79,0.00031232,6]
[385824442,1758057065752,-409.35,0.00031232,6]
[385824443,1758057065762,-400.0,0.00031232,6]
[385824444,1758057065771,-400.0,0.00031232,6]
[385824445,1758057065780,-791.37,0.00031232,6]
[385824446,1758057065790,-625.93,0.00031232,6]
[385824447,1758057065799,-400.0,0.00031232,6]
[385824448,1758057065809,-609.54,0.00031232,6]
[385824449,1758057065818,-510.33,0.00031232,6]
[385824450,1758057065925,-556.43,0.00031232,6]
[385824451,1758057065935,-745.45,0.00031232,6]
[385824452,1758057065945,-400.0,0.00031232,6]
[385824453,1758057065954,-400.0,0.00031232,6]
[385824454,1758057065964,-438.34,0.00031232,6]
[385824455,1758057065975,-400.0,0.00031232,6]
[385824456,1758057065986,-1260.15,0.00031232,6]
[385824457,1758057065995,-461.54,0.00031232,6]
[385824458,1758057066005,-636.26,0.00031232,6]
[385824459,1758057066014,-400.0,0.00031232,6]
[385824460,1758057066023,-400.0,0.00031232,6]
[385824461,1758057066033,-400.0,0.00031232,6]
[385824462,1758057066042,-479.5,0.00031232,6]
[385824463,1758057066051,-587.63,0.00031232,6]
[385824464,1758057066061,-1289.38,0.00031232,6]
[385824465,1758057066071,-400.0,0.00031232,6]
[385824466,1758057066081,-400.0,0.00031232,6]
[385824467,1758057066091,-506.39,0.00031232,6]
[385824468,1758057066100,-400.0,0.00031232,6]
[385824469,1758057066110,-462.29,0.00031232,6]
[385824470,1758057066119,-400.0,0.00031232,6]
[385824471,1758057066128,-400.0,0.00031232,6]
[385824472,1758057066138,-400.0,0.00031232,6]
[385824473,1758057066147,-400.0,0.00031232,6]
[385824474,1758057066158,-400.0,0.00031232,6]
[385824475,1758057066168,-690.9,0.00031232,6]
[385824476,1758057066178,-1146.39,0.00031232,6]
[385824477,1758057066189,-449.23,0.00031232,5]
[385824478,1758057066199,-400.0,0.00031232,6]
[385824479,1758057066209,-684.79,0.00031232,6]
[385824480,1758057066219,-400.0,0.00031232,6]
[385824481,1758057066228,-400.0,0.00031232,6]
[385824482,1758057066237,-400.0,0.00031232,6]
[385824483,1758057066246,-400.0,0.00031232,6]
[385824484,1758057066256,-400.0,0.00031232,6]
[385824485,1758057066265,-151.0,0.00031232,7]
[385824486,1758057066275,-843.08,0.00031232,6]
[385824487,1758057066284,-400.0,0.00031232,6]
[385824488,1758057066294,-400.0,0.00031232,6]
[385824489,1758057066304,-400.0,0.00031232,6]
[385824490,1758057066314,-400.0,0.00031232,6]
[385824491,1758057066323,-400.0,0.00031232,6]
[385824492,1758057066333,-400.0,0.00031232,6]
[385824493,1758057066343,-400.0,0.00031232,6]
[385824494,1758057066352,-400.0,0.00031232,6]
[385824495,1758057066362,-497.6,0.00031232,6]
[385824496,1758057066371,-400.0,0.00031232,6]
[385824497,1758057066381,-400.0,0.00031232,6]
[385824498,1758057066391,-400.0,0.00031232,6]
[385824499,1758057066400,-400.0,0.00031232,6]
[385824500,1758057066409,-400.0,0.00031232,6]
[385824501,1758057066419,-400.0,0.00031232,6]
[385824502,1758057066433,-400.0,0.00031232,6]
[385824503,1758057066442,-400.0,0.00031232,6]
[385824504,1758057066452,-2611.36,0.00031232,6]
[385824505,1758057066462,-400.0,0.00031232,6]
[385824506,1758057066472,-400.0,0.00031232,6]
[385824507,1758057066482,-400.0,0.00031232,6]
[385824508,1758057066492,-400.0,0.00031232,6]
[385824509,1758057066501,-553.62,0.00031232,6]
[385824510,1758057066511,-467.85,0.00031232,6]
[385824511,1758057066521,-400.0,0.00031232,6]
[385824512,1758057066531,-836.09,0.00031232,6]
[385824513,1758057066541,-400.0,0.00031232,6]
[385824514,1758057066551,-1289.35,0.00031232,6]
[385824515,1758057066560,-400.0,0.00031232,6]
[385824516,1758057066571,-400.0,0.00031232,6]
[385824517,1758057066580,-400.0,0.00031232,6]
[385824518,1758057066590,-400.0,0.00031232,6]
[385824519,1758057066599,-430.5,0.00031232,6]
[385824520,1758057066609,-400.0,0.00031232,6]
[385824521,1758057066618,-400.0,0.00031232,6]
[385824522,1758057066628,-400.0,0.00031232,6]
[385824523,1758057066637,-237.29839124,0.00031232,6]
[385824524,1758057066649,-479.52,0.00031232,6]
[385824525,1758057066659,-400.0,0.00031232,6]
[385824526,1758057066668,-400.0,0.00031232,6]
[385824527,1758057066678,-400.0,0.00031232,6]
[385824528,1758057066689,-441.74,0.00031232,6]
[385824529,1758057066699,-507.91,0.00031232,6]
[385824530,1758057066708,-400.0,0.00031232,6]
[385824531,1758057066718,-400.0,0.00031232,6]
[385824532,1758057066727,-547.58,0.00031232,6]
[385824533,1758057066737,-2216.47,0.00031232,6]
[385824534,1758057066747,-400.0,0.00031232,6]
[385824535,1758057066757,-490.71466076,0.00031232,6]
[385824536,1758057066766,-400.0,0.00031232,6]
[385824537,1758057066776,-400.0,0.00031232,6]
[385824538,1758057066786,-400.0,0.00031232,6]
[385824539,1758057066796,-700.0,0.0003126,7]
[385824540,1758057066806,-1100.0,0.00031284,7]
[385824541,1758057066815,-40110.78,0.000313,7]
[385824542,1758057066824,-151.0,0.000313,7]
[385824543,1758057066834,-780.46257145,0.00031319,15]
[385824544,1758057066844,-168.0,0.00031367,2]
[385824545,1758057066854,-500.0,0.00031367,7]
[385824546,1758057066863,-700.0,0.00031372,7]
[385824547,1758057066873,-600.0,0.0003139,5]
[385824548,1758057066883,-156.11368437,0.00031406,2]
[385824549,1758057066895,-1100.0,0.00031422,7]
[385824550,1758057066905,-839.09243417,0.00031452,2]
[385824551,1758057066914,-600.0,0.00031463,7]
[385824552,1758057066923,-300.0,0.00031505,10]
[385824553,1758057066933,-666.0,0.00031505,10]
[385824554,1758057066942,-472.24,0.00031506,6]
[385824555,1758057066952,-400.0,0.00031506,6]
[385824556,1758057066961,-353.39340666,0.00031506,6]
[385824557,1758057066970,-400.0,0.00031506,6]
[385824558,1758057066980,-488.74352675,0.00031506,6]
[385824559,1758057066989,-400.0,0.00031506,6]
[385824560,1758057066999,-400.0,0.00031506,6]
[385824561,1758057067008,-400.0,0.00031506,6]
[385824562,1758057067018,-400.0,0.00031506,6]
[385824563,1758057067027,-400.0,0.00031506,6]
[385824564,1758057067037,-400.0,0.00031506,6]
[385824565,1758057067046,-400.0,0.00031506,6]
[385824566,1758057067056,-400.0,0.00031506,6]
[385824567,1758057067065,-400.0,0.00031506,6]
[385824568,1758057067075,-400.0,0.00031506,6]
[385824569,1758057067084,-400.42784397,0.00031506,6]
[385824570,1758057067094,-400.0,0.00031506,6]
[385824571,1758057067104,-400.0,0.00031506,6]
[385824572,1758057067122,-400.0,0.00031506,6]
[385824573,1758057067135,-411.51749472,0.00031506,6]
[385824574,1758057067146,-400.0,0.00031506,6]
[385824575,1758057067156,-400.0,0.00031506,6]
[385824576,1758057067166,-400.0,0.00031506,6]
[385824577,1758057067175,-400.0,0.00031506,6]
[385824578,1758057067185,-400.0,0.00031506,6]
[385824579,1758057067195,-595.04,0.00031506,6]
[385824580,1758057067205,-400.0,0.00031506,6]
[385824581,1758057067215,-400.0,0.00031506,6]
[385824582,1758057067224,-817.46,0.00031506,6]
[385824583,1758057067234,-305.40693922,0.00031506,6]
[385824584,1758057067243,-400.0,0.00031506,6]
[385824585,1758057067253,-400.0,0.00031506,6]
[385824586,1758057067263,-426.72,0.00031506,6]
[385824587,1758057067273,-400.0,0.00031506,6]
[385824588,1758057067282,-400.0,0.00031506,6]
[385824589,1758057067291,-400.0,0.00031506,6]
[385824590,1758057067301,-400.0,0.00031506,6]
[385824591,1758057067311,-400.0,0.00031506,6]
[385824592,1758057067321,-400.0,0.00031506,6]
[385824593,1758057067330,-400.0,0.00031506,6]
[385824594,1758057067340,-400.0,0.00031506,6]
[385824595,1758057067349,-400.0,0.00031506,6]
[385824596,1758057067359,-400.0,0.00031506,6]
[385824597,1758057067369,-400.0,0.00031506,6]
[385824598,1758057067378,-400.0,0.00031506,6]
[385824599,1758057067387,-400.0,0.00031506,6]
[385824600,1758057067397,-400.0,0.00031506,6]
[385824601,1758057067409,-466.82,0.00031506,6]
[385824602,1758057067418,-400.0,0.00031506,6]
[385824603,1758057067427,-436.46,0.00031506,6]
[385824604,1758057067437,-400.0,0.00031506,6]
[385824605,1758057067446,-400.0,0.00031506,6]